fUST/lending_fUST_20260603
["ID","MTS","AMOUNT","RATE_DAILY","PERIOD"]
[423794550,1780426240000,-500.0,0.00014246,2]
[423794553,1780426240000,-524.03931776,0.00014246,2]
[423794555,1780426240000,-500.0,0.00014246,2]
[423794554,1780426240000,-500.0,0.00014246,2]
[423794559,1780426240000,-689.77538779,0.00014499,7]
[423794558,1780426240000,-500.0,0.00014246,2]
[423794581,1780426240000,-221.71348547,0.00015311,2]
[423794556,1780426240000,-500.0,0.00014246,2]
[423794560,1780426240000,-500.0,0.0001452,2]
[423794562,1780426240000,-648.97289609,0.0001452,2]
[423794574,1780426240000,-587.0,0.00015063,2]
[423794561,1780426240000,-500.0,0.0001452,2]
[423794573,1780426240000,-689.77538783,0.00015036,7]
[423794575,1780426240000,-500.0,0.00015068,2]
[423794563,1780426240000,-500.0,0.0001452,2]
[423794587,1780426240000,-500.0,0.00015616,2]
[423794585,1780426240000,-500.0,0.00015616,2]
[423794576,1780426240000,-500.0,0.00015068,2]
[423794569,1780426240000,-500.0,0.00014794,2]
[423794588,1780426240000,-500.0,0.0001589,2]
[423794568,1780426240000,-500.0,0.00014794,2]
[423794565,1780426240000,-500.0,0.0001452,2]
[423794570,1780426240000,-500.0,0.00014794,2]
[423794567,1780426240000,-549.475741,0.00014658,2]
[423794566,1780426240000,-448.64307886,0.0001452,2]
[423794572,1780426240000,-500.0,0.00014794,2]
[423794619,1780426241000,-500.0,0.00016164,2]
[423794618,1780426241000,-500.0,0.00016164,2]
[423794623,1780426241000,-190.76542828,0.00016188,2]
[423794631,1780426241000,-209.02649298,0.00016198,2]
[423794620,1780426241000,-500.0,0.00016188,2]
[423794621,1780426241000,-500.0,0.00016188,2]
[423794764,1780426242000,-500.0,0.00019476,2]
[423794775,1780426242000,-533.21178026,0.00019675,2]
[423794765,1780426242000,-1221.87131281,0.00019524,2]
[423794766,1780426242000,-300.0,0.00019589,3]
[423794768,1780426242000,-1581.28045284,0.000196,2]
[423794772,1780426242000,-17708.73550522,0.00019675,2]
[423794763,1780426242000,-1103.55,0.00019452,2]
[423794779,1780426242000,-1806.30804927,0.00019675,2]
[423794767,1780426242000,-170.88079684,0.00019591,3]
[423794774,1780426242000,-1696.9519941,0.00019675,2]
[423794773,1780426242000,-585.25397543,0.00019675,2]
[423794769,1780426242000,-221.71348547,0.00019626,2]
[423794778,1780426242000,-792.17918765,0.00019675,2]
[423794771,1780426242000,-3297.1917798,0.00019675,2]
[423794777,1780426242000,-500.0,0.00019675,2]
[423794841,1780426244000,-12700.8620387,0.00019675,2]
[423794835,1780426244000,-1990.70963771,0.00019675,2]
[423794834,1780426244000,-54907.43701433,0.00019675,2]
[423794833,1780426244000,-110.88052033,0.00019675,2]
[423794830,1780426244000,-3242.38215014,0.00019675,2]
[423794829,1780426244000,-2512.25604105,0.00019675,2]
[423794889,1780426247000,-2150.00499999,0.00019675,2]
[423794892,1780426247000,-4249.40327599,0.00019675,2]
[423794887,1780426247000,-355.3,0.00019675,2]
[423794896,1780426247000,-760.34072277,0.00019675,2]
[423794898,1780426247000,-62148.94328927,0.00019675,2]
[423794894,1780426247000,-27919.64041576,0.00019675,2]
[423794895,1780426247000,-11912.29595612,0.00019675,2]
[423796854,1780426401000,161.22,8.203e-05,2]
[423796853,1780426401000,161.21,8.203e-05,2]
[423797118,1780426625000,290.18,8.203e-05,2]
[423797123,1780426832000,575.0,0.00022602,120]
[423797124,1780426856000,2181.00000001,0.00023392,30]
[423797130,1780427358000,-259.70441006,8.56e-05,2]
[423797168,1780427431000,-216.0,0.00012723,2]
[423797166,1780427431000,-1561.05293557,9.88e-05,7]
[423797167,1780427431000,-183.0,0.00010723,2]
[423797165,1780427431000,-1561.05293554,9.527e-05,7]
[423797156,1780427431000,-2000.0,8.8e-05,2]
[423797163,1780427431000,-1561.05293554,9.262e-05,7]
[423797160,1780427431000,-1561.05293554,8.821e-05,7]
[423797155,1780427431000,-5000.0,8.474e-05,2]
[423797158,1780427431000,-154.0,8.821e-05,7]
[423797170,1780427431000,-500.0,0.00013698,2]
[423797161,1780427431000,-1561.05293554,8.997e-05,7]
[423797173,1780427431000,-57.7188241,0.00013698,2]
[423797169,1780427431000,-777.81109772,0.00013598,2]
[423797174,1780427431000,-436.26344689,0.00013698,2]
[423797172,1780427431000,-300.16191501,0.00013698,2]
[423797185,1780427431000,-517.13715557,0.00013698,2]
[423797187,1780427431000,-249.09772449,0.00013698,2]
[423797183,1780427431000,-501.55105572,0.00013698,2]
[423797181,1780427431000,-483.53365576,0.00013698,2]
[423797179,1780427431000,-321.01133525,0.00013698,2]
[423797182,1780427431000,-500.0,0.00013698,2]
[423797176,1780427431000,-500.0,0.00013698,2]
[423797178,1780427431000,-360.67316308,0.00013698,2]
[423797177,1780427431000,-151.38465502,0.00013698,2]
[423797175,1780427431000,-500.0,0.00013698,2]
[423797171,1780427431000,-142.11926089,0.00013698,2]
[423797180,1780427431000,-16.46634424,0.00013698,2]
[423797232,1780427438000,-297.30727692,0.00013698,2]
[423797223,1780427438000,-500.0,0.00013698,2]
[423797222,1780427438000,-500.0,0.00013698,2]
[423797224,1780427438000,-500.0,0.00013698,2]
[423797225,1780427438000,-501.48493491,0.00013698,2]
[423797228,1780427438000,-500.0,0.00013698,2]
[423797233,1780427438000,-500.0,0.00013698,2]
[423797230,1780427438000,-500.33451948,0.00013698,2]
[423797226,1780427438000,-500.0,0.00013698,2]
[423797229,1780427438000,-500.0,0.00013698,2]
[423797231,1780427438000,-203.29417354,0.00013698,2]
[423797221,1780427438000,-556.47,0.00013698,2]
[423797234,1780427438000,-500.0,0.00013698,2]
[423797227,1780427438000,-500.0,0.00013698,2]
[423797219,1780427438000,-151.48,0.00013698,2]
[423797214,1780427438000,-500.0,0.00013698,2]
[423797215,1780427438000,-500.0,0.00013698,2]
[423797213,1780427438000,-501.90586945,0.00013698,2]
[423797218,1780427438000,-500.0,0.00013698,2]
[423797216,1780427438000,-500.0,0.00013698,2]
[423797212,1780427438000,-501.643361,0.00013698,2]
[423797217,1780427438000,-224.07,0.00013698,2]
[423797208,1780427438000,-501.97703972,0.00013698,2]
[423797210,1780427438000,-503.36622058,0.00013698,2]
[423797211,1780427438000,-504.91467749,0.00013698,2]
[423797209,1780427438000,-500.0,0.00013698,2]
[423797207,1780427438000,-500.0,0.00013698,2]
[423797205,1780427438000,-75.45580655,0.00013698,2]
[423797206,1780427438000,-500.0,0.00013698,2]
[423797235,1780427438000,-500.0,0.00013698,2]
[423797220,1780427438000,-476.0575199,0.00013698,2]
[423797237,1780427438000,-500.0,0.00013698,2]
[423797262,1780427438000,-500.0,0.0001452,2]
[423797239,1780427438000,-500.0,0.00013698,2]
[423797269,1780427438000,-500.0,0.00015342,2]
[423797268,1780427438000,-199.01879555,0.00015237,2]
[423797267,1780427438000,-232.27200502,0.00015237,2]
[423797265,1780427438000,-500.0,0.00015068,2]
[423797266,1780427438000,-165.220197,0.00015068,2]
[423797263,1780427438000,-500.0,0.00014794,2]
[423797264,1780427438000,-9224.44683285,0.00015,2]
[423797261,1780427438000,-500.0,0.00014246,2]
[423797270,1780427438000,-500.0,0.00015616,2]
[423797259,1780427438000,-1000.0,0.00013699,2]
[423797258,1780427438000,-720.660385,0.00013699,2]
[423797256,1780427438000,-500.0,0.00013698,2]
[423797257,1780427438000,-500.33137294,0.00013698,2]
[423797260,1780427438000,-500.0,0.00013972,2]
[423797255,1780427438000,-528.02407837,0.00013698,2]
[423797238,1780427438000,-500.0,0.00013698,2]
[423797252,1780427438000,-500.0,0.00013698,2]
[423797240,1780427438000,-500.0,0.00013698,2]
[423797236,1780427438000,-500.0,0.00013698,2]
[423797245,1780427438000,-500.0,0.00013698,2]
[423797241,1780427438000,-500.0,0.00013698,2]
[423797243,1780427438000,-500.0,0.00013698,2]
[423797244,1780427438000,-500.0,0.00013698,2]
[423797242,1780427438000,-550.98845284,0.00013698,2]
[423797254,1780427438000,-500.0,0.00013698,2]
[423797248,1780427438000,-500.0,0.00013698,2]
[423797247,1780427438000,-472.47738368,0.00013698,2]
[423797249,1780427438000,-500.0,0.00013698,2]
[423797251,1780427438000,-500.0,0.00013698,2]
[423797250,1780427438000,-500.0,0.00013698,2]
[423797253,1780427438000,-624.18,0.00013698,2]
[423797246,1780427438000,-500.0,0.00013698,2]
[423797272,1780427439000,-3885.45215023,0.00015788,2]
[423797273,1780427439000,-2761.43621564,0.00015788,2]
[423797271,1780427439000,-190.40730747,0.00015788,2]
[423797276,1780427439000,-952.97724851,0.00015788,2]
[423797275,1780427439000,-2536.51378436,0.00015788,2]
[423797274,1780427439000,-22915.02475002,0.00015788,2]
[423797296,1780427440000,-7909.01872154,0.00015788,2]
[423797297,1780427440000,-1258.43671265,0.00015788,2]
[423797293,1780427440000,-1336.43154161,0.00013561,2]
[423797295,1780427440000,-500.0,0.00015788,2]
[423797294,1780427440000,-149.12491166,0.00015788,2]
[423797291,1780427440000,-1019.05201729,0.00013561,2]
[423797292,1780427440000,-2644.5164411,0.00013561,2]
[423797343,1780427443000,-813.5,0.00015788,2]
[423797337,1780427443000,-1179.67946753,0.00015788,2]
[423797334,1780427443000,-6151.10398702,0.00015788,2]
[423797339,1780427443000,-3256.23330091,0.00015788,2]
[423797341,1780427443000,-285.0,0.00015788,2]
[423797347,1780427443000,-468.942,0.00015788,2]
[423797634,1780427446000,-276.5150003,0.00015788,2]
[423797646,1780427446000,-24576.8024441,0.00015788,2]
[423797636,1780427446000,-920.123,0.00015788,2]
[423797649,1780427446000,-46355.38751532,0.00015788,2]
[423797648,1780427446000,-63614.1874677,0.00015788,2]
[423797647,1780427446000,-503087.8970478,0.00015788,2]
[423797659,1780427585000,250.0,2e-05,2]
[423797667,1780428136000,6070.0,7.6e-05,2]
[423797719,1780428631000,-615.4745348,0.00011507,2]
[423797718,1780428631000,-921.04922224,0.00011392,2]
[423797723,1780428631000,-1200.0,0.00013197,2]
[423797720,1780428631000,-4384.5254652,0.00011507,2]
[423797721,1780428631000,-238.5040501,0.00012397,2]
[423797725,1780428631000,-1200.0,0.00013295,2]
[423797722,1780428631000,-1415.6180258,0.00012596,2]
[423797727,1780428631000,-300.0,0.00013295,2]
[423797724,1780428631000,-609.70756777,0.00013198,2]
[423797726,1780428631000,-300.0,0.00013295,2]
[423797728,1780428632000,-300.0,0.00013295,2]
[423797730,1780428632000,-537.82605577,0.00013298,2]
[423797729,1780428632000,-51872.30306354,0.00013298,2]
[423797830,1780428641000,-152.0,0.00012886,7]
[423797831,1780428641000,-114552.17673149,0.00013298,2]
[423797814,1780428641000,-701.00533547,0.00013198,2]
[423797816,1780428641000,-39772.11365969,0.00013298,2]
[423797812,1780428641000,-716.36518978,0.00013165,2]
[423797818,1780428641000,-226820.02372304,0.00013298,2]
[423797868,1780428643000,-21399.50150064,0.00013298,2]
[423797867,1780428643000,-5000.0,0.00013033,2]
[423797869,1780428644000,-2019.61164055,0.00013298,2]
[423797902,1780428646000,-3407.91952033,0.00013298,2]
[423798545,1780428730000,-1615.92222717,0.00013033,2]
[423803050,1780429137000,5000.0,0.00023381,30]
[423803634,1780429735000,201.0,0.00023399,120]
[423803641,1780429832000,-799.992,0.00011552,2]
[423804055,1780429841000,-500.0,0.00012993,2]
[423804054,1780429841000,-500.0,0.00012993,2]
[423804061,1780429841000,-500.0,0.00012993,2]
[423804062,1780429841000,-500.0,0.00012993,2]
[423804064,1780429841000,-517.6584496,0.00012993,2]
[423804063,1780429841000,-500.0,0.00012993,2]
[423804077,1780429841000,-500.0,0.00012993,2]
[423804066,1780429841000,-500.0,0.00012993,2]
[423804065,1780429841000,-500.0,0.00012993,2]
[423804068,1780429841000,-500.0,0.00012993,2]
[423804069,1780429841000,-500.0,0.00012993,2]
[423804070,1780429841000,-500.0,0.00012993,2]
[423804067,1780429841000,-500.0,0.00012993,2]
[423804073,1780429841000,-500.0,0.00012993,2]
[423804076,1780429841000,-500.0,0.00012993,2]
[423804072,1780429841000,-500.0,0.00012993,2]
[423804074,1780429841000,-500.0,0.00012993,2]
[423804050,1780429841000,-500.0,0.00012993,2]
[423804071,1780429841000,-500.0,0.00012993,2]
[423804121,1780429841000,-813.4592121,0.00012995,2]
[423804057,1780429841000,-500.0,0.00012993,2]
[423804031,1780429841000,-633.80029344,0.00012894,2]
[423804018,1780429841000,-4200.008,0.00011552,2]
[423804029,1780429841000,-152.0,0.00012886,7]
[423804023,1780429841000,-300.0,0.00012145,2]
[423804020,1780429841000,-4324.79922507,0.00011669,2]
[423804033,1780429841000,-446.0,0.00012965,2]
[423804027,1780429841000,-300.0,0.00012145,2]
[423804034,1780429841000,-500.0,0.00012993,2]
[423804021,1780429841000,-1200.0,0.00011786,2]
[423804025,1780429841000,-300.0,0.00012145,2]
[423804036,1780429841000,-500.0,0.00012993,2]
[423804038,1780429841000,-500.0,0.00012993,2]
[423804040,1780429841000,-500.0,0.00012993,2]
[423804042,1780429841000,-580.27871616,0.00012993,2]
[423804046,1780429841000,-500.0,0.00012993,2]
[423804048,1780429841000,-500.0,0.00012993,2]
[423804044,1780429841000,-500.0,0.00012993,2]
[423804052,1780429841000,-500.0,0.00012993,2]
[423804059,1780429841000,-500.0,0.00012993,2]
[423804075,1780429841000,-500.0,0.00012993,2]
[423804080,1780429841000,-500.0,0.00012993,2]
[423804102,1780429841000,-500.0,0.00012993,2]
[423804103,1780429841000,-500.0,0.00012993,2]
[423804101,1780429841000,-500.0,0.00012993,2]
[423804105,1780429841000,-500.0,0.00012993,2]
[423804111,1780429841000,-500.0,0.00012993,2]
[423804104,1780429841000,-500.0,0.00012993,2]
[423804106,1780429841000,-500.0,0.00012993,2]
[423804097,1780429841000,-500.0,0.00012993,2]
[423804108,1780429841000,-500.0,0.00012993,2]
[423804113,1780429841000,-190.53361492,0.00012994,2]
[423804107,1780429841000,-229.42281056,0.00012993,2]
[423804109,1780429841000,-500.0,0.00012993,2]
[423804114,1780429841000,-500.0,0.00012994,2]
[423804110,1780429841000,-500.0,0.00012993,2]
[423804116,1780429841000,-481964.94672577,0.00012995,2]
[423804117,1780429841000,-2000.39994,0.00012995,2]
[423804112,1780429841000,-500.0,0.00012993,2]
[423804078,1780429841000,-500.0,0.00012993,2]
[423804096,1780429841000,-500.0,0.00012993,2]
[423804100,1780429841000,-323.19595892,0.00012993,2]
[423804081,1780429841000,-500.0,0.00012993,2]
[423804079,1780429841000,-500.0,0.00012993,2]
[423804083,1780429841000,-500.0,0.00012993,2]
[423804090,1780429841000,-500.0,0.00012993,2]
[423804082,1780429841000,-500.0,0.00012993,2]
[423804084,1780429841000,-500.0,0.00012993,2]
[423804088,1780429841000,-500.0,0.00012993,2]
[423804095,1780429841000,-500.0,0.00012993,2]
[423804087,1780429841000,-500.0,0.00012993,2]
[423804085,1780429841000,-500.0,0.00012993,2]
[423804091,1780429841000,-500.0,0.00012993,2]
[423804089,1780429841000,-500.0,0.00012993,2]
[423804093,1780429841000,-500.0,0.00012993,2]
[423804099,1780429841000,-500.0,0.00012993,2]
[423804098,1780429841000,-500.0,0.00012993,2]
[423804092,1780429841000,-500.0,0.00012993,2]
[423804094,1780429841000,-500.0,0.00012993,2]
[423804086,1780429841000,-500.0,0.00012993,2]
[423804115,1780429841000,-185.72824414,0.00012994,2]
[423804167,1780429844000,-2466.67735365,0.00012895,2]
[423804168,1780429844000,-973.27240735,0.00012895,2]
[423804203,1780429846000,-43684.9430688,0.00012895,2]
[423806789,1780430415000,5000.0,0.00023384,30]
[423809606,1780431032000,-234.42028142,0.00011597,2]
[423809581,1780431032000,-200.0,9.902e-05,2]
[423809587,1780431032000,-300.0,0.00011596,2]
[423809582,1780431032000,-150.999999,0.00010104,2]
[423809584,1780431032000,-171.14967518,0.00011504,2]
[423809585,1780431032000,-493.85032482,0.00011504,2]
[423809580,1780431032000,-4800.0,9.902e-05,2]
[423809586,1780431032000,-263.0,0.00011596,2]
[423809589,1780431032000,-500.0,0.00011597,2]
[423809588,1780431032000,-500.0,0.00011597,2]
[423809591,1780431032000,-500.0,0.00011597,2]
[423809583,1780431032000,-151.0,0.00010912,2]
[423809592,1780431032000,-500.0,0.00011597,2]
[423809590,1780431032000,-414.38031228,0.00011597,2]
[423809604,1780431032000,-500.0,0.00011597,2]
[423809598,1780431032000,-500.0,0.00011597,2]
[423809597,1780431032000,-500.0,0.00011597,2]
[423809600,1780431032000,-251.35119041,0.00011597,2]
[423809595,1780431032000,-500.0,0.00011597,2]
[423809599,1780431032000,-106.20582462,0.00011597,2]
[423809594,1780431032000,-500.0,0.00011597,2]
[423809593,1780431032000,-500.0,0.00011597,2]
[423809602,1780431032000,-142.44298497,0.00011597,2]
[423809596,1780431032000,-500.0,0.00011597,2]
[423809683,1780431040000,-373.03910109,0.00013053,2]
[423809698,1780431040000,-151.0,0.000135,2]
[423809684,1780431040000,-151.0,0.000131,2]
[423809680,1780431040000,-17187.9972273,0.00012754,2]
[423809681,1780431040000,-151.0,0.000128,2]
[423809679,1780431040000,-6283.9324387,0.00012754,2]
[423809688,1780431040000,-151.0,0.00013298,2]
[423809687,1780431040000,-151.0,0.00013298,2]
[423809692,1780431040000,-151.0,0.00013298,2]
[423809690,1780431040000,-151.0,0.00013298,2]
[423809689,1780431040000,-151.0,0.00013298,2]
[423809691,1780431040000,-151.0,0.00013298,2]
[423809696,1780431040000,-500.0,0.00013298,2]
[423809693,1780431040000,-151.0,0.00013298,2]
[423809697,1780431040000,-151.0,0.000133,2]
[423809695,1780431040000,-151.84870157,0.00013298,2]
[423809678,1780431040000,-2196.7315116,0.00012754,2]
[423809699,1780431040000,-500.0,0.00013572,2]
[423809677,1780431040000,-3576.9556778,0.00012754,2]
[423809666,1780431040000,-183.0,0.00012053,2]
[423809676,1780431040000,-2008.1423186,0.00012754,2]
[423809661,1780431040000,-500.0,0.00011597,2]
[423809659,1780431040000,-97.89931447,0.00011597,2]
[423809660,1780431040000,-500.0,0.00011597,2]
[423809662,1780431040000,-23903.7575003,0.00011598,2]
[423809664,1780431040000,-151.1,0.00012,2]
[423809667,1780431040000,-626.164977,0.00012198,2]
[423809663,1780431040000,-626.164977,0.00011705,2]
[423809665,1780431040000,-151.09,0.00012,2]
[423809674,1780431040000,-205.0,0.00012735,2]
[423809694,1780431040000,-151.0,0.00013298,2]
[423809668,1780431040000,-390.11989385,0.00012386,2]
[423809673,1780431040000,-483974.43958758,0.00012695,2]
[423809672,1780431040000,-200038.66134097,0.00012695,2]
[423809670,1780431040000,-612.15171912,0.00012694,2]
[423809671,1780431040000,-45309.30152238,0.00012695,2]
[423809685,1780431040000,-626.164977,0.00013184,2]
[423809675,1780431040000,-28162.6313298,0.00012754,2]
[423809686,1780431040000,-181.4542566,0.00013298,2]
[423809669,1780431040000,-626.164977,0.00012691,2]
[423809700,1780431040000,-151.0,0.000136,2]
[423809682,1780431040000,-151.0,0.000129,2]
[423809701,1780431040000,-151.0,0.000136,2]
[423809724,1780431040000,-500.0,0.00013698,2]
[423809728,1780431040000,-500.0,0.00013698,2]
[423809730,1780431040000,-503.21627591,0.00013698,2]
[423809729,1780431040000,-500.0,0.00013698,2]
[423809732,1780431040000,-500.0,0.00013698,2]
[423809731,1780431040000,-174.463015,0.00013698,2]
[423809733,1780431040000,-174.463015,0.00013698,2]
[423809736,1780431040000,-174.463015,0.00013698,2]
[423809723,1780431040000,-500.0,0.00013698,2]
[423809739,1780431040000,-174.463015,0.00013698,2]
[423809741,1780431040000,-500.0,0.00013698,2]
[423809734,1780431040000,-500.0,0.00013698,2]
[423809743,1780431040000,-174.463015,0.00013698,2]
[423809738,1780431040000,-174.463015,0.00013698,2]
[423809750,1780431040000,-500.0,0.00013698,2]
[423809749,1780431040000,-500.0,0.00013698,2]
[423809752,1780431040000,-500.41584361,0.00013698,2]
[423809702,1780431040000,-626.164977,0.00013676,2]
[423809745,1780431040000,-174.463015,0.00013698,2]
[423809727,1780431040000,-500.0,0.00013698,2]
[423809747,1780431040000,-174.463015,0.00013698,2]
[423809718,1780431040000,-500.0,0.00013698,2]
[423809703,1780431040000,-383.52968915,0.00013681,2]
[423809716,1780431040000,-500.0,0.00013698,2]
[423809712,1780431040000,-500.0,0.00013698,2]
[423809704,1780431040000,-500.0,0.00013698,2]
[423809711,1780431040000,-500.0,0.00013698,2]
[423809709,1780431040000,-200.25779269,0.00013698,2]
[423809706,1780431040000,-500.0,0.00013698,2]
[423809707,1780431040000,-500.0,0.00013698,2]
[423809710,1780431040000,-500.0,0.00013698,2]
[423809713,1780431040000,-500.0,0.00013698,2]
[423809717,1780431040000,-500.0,0.00013698,2]
[423809715,1780431040000,-500.0,0.00013698,2]
[423809714,1780431040000,-500.0,0.00013698,2]
[423809726,1780431040000,-500.0,0.00013698,2]
[423809725,1780431040000,-500.0,0.00013698,2]
[423809721,1780431040000,-500.0,0.00013698,2]
[423809722,1780431040000,-500.0,0.00013698,2]
[423809708,1780431040000,-500.80952637,0.00013698,2]
[423809720,1780431040000,-500.0,0.00013698,2]
[423809827,1780431041000,-500.0,0.00013698,2]
[423809836,1780431041000,-500.0,0.00013698,2]
[423809834,1780431041000,-501.41860631,0.00013698,2]
[423809826,1780431041000,-500.0,0.00013698,2]
[423809832,1780431041000,-500.0,0.00013698,2]
[423809830,1780431041000,-500.0,0.00013698,2]
[423809821,1780431041000,-500.0,0.00013698,2]
[423809820,1780431041000,-501.49393242,0.00013698,2]
[423809817,1780431041000,-500.0,0.00013698,2]
[423809838,1780431041000,-500.0,0.00013698,2]
[423809816,1780431041000,-522.06016921,0.00013698,2]
[423809824,1780431041000,-500.0,0.00013698,2]
[423809844,1780431041000,-501.3466403,0.00013698,2]
[423809851,1780431041000,-500.0,0.00013698,2]
[423809842,1780431041000,-500.0,0.00013698,2]
[423809857,1780431041000,-500.0,0.00013698,2]
[423809859,1780431041000,-500.0,0.00013698,2]
[423809847,1780431041000,-500.0,0.00013698,2]
[423809855,1780431041000,-500.83574987,0.00013698,2]
[423809853,1780431041000,-500.0,0.00013698,2]
[423809849,1780431041000,-500.0,0.00013698,2]
[423809845,1780431041000,-500.0,0.00013698,2]
[423809862,1780431041000,-500.0,0.00013698,2]
[423809866,1780431041000,-500.0,0.00013698,2]
[423809860,1780431041000,-503.92,0.00013698,2]
[423809814,1780431041000,-500.0,0.00013698,2]
[423809840,1780431041000,-500.0,0.00013698,2]
[423809799,1780431041000,-500.0,0.00013698,2]
[423809781,1780431041000,-500.0,0.00013698,2]
[423809801,1780431041000,-500.0,0.00013698,2]
[423809761,1780431041000,-500.0,0.00013698,2]
[423809754,1780431041000,-500.0,0.00013698,2]
[423809759,1780431041000,-500.0,0.00013698,2]
[423809769,1780431041000,-557.26802676,0.00013698,2]
[423809758,1780431041000,-501.07805286,0.00013698,2]
[423809756,1780431041000,-500.0,0.00013698,2]
[423809765,1780431041000,-500.0,0.00013698,2]
[423809767,1780431041000,-500.0,0.00013698,2]
[423809771,1780431041000,-500.0,0.00013698,2]
[423809773,1780431041000,-500.44445416,0.00013698,2]
[423809775,1780431041000,-500.0,0.00013698,2]
[423809777,1780431041000,-500.0,0.00013698,2]
[423809779,1780431041000,-500.0,0.00013698,2]
[423809782,1780431041000,-500.55290999,0.00013698,2]
[423809788,1780431041000,-500.0,0.00013698,2]
[423809864,1780431041000,-500.0,0.00013698,2]
[423809786,1780431041000,-500.0,0.00013698,2]
[423809784,1780431041000,-500.0,0.00013698,2]
[423809792,1780431041000,-500.0,0.00013698,2]
[423809794,1780431041000,-500.0,0.00013698,2]
[423809806,1780431041000,-297.29691602,0.00013698,2]
[423809797,1780431041000,-500.0,0.00013698,2]
[423809808,1780431041000,-500.0,0.00013698,2]
[423809795,1780431041000,-500.0,0.00013698,2]
[423809810,1780431041000,-500.0,0.00013698,2]
[423809803,1780431041000,-500.0,0.00013698,2]
[423809812,1780431041000,-500.0,0.00013698,2]
[423809805,1780431041000,-500.0,0.00013698,2]
[423809868,1780431041000,-500.0,0.00013698,2]
[423809790,1780431041000,-450.12826,0.00013698,2]
[423809870,1780431041000,-503.51377231,0.00013698,2]
[423809929,1780431041000,-500.0,0.00013698,2]
[423809934,1780431041000,-500.0,0.00013698,2]
[423809932,1780431041000,-562.5,0.00013698,2]
[423809928,1780431041000,-500.0,0.00013698,2]
[423809933,1780431041000,-500.0,0.00013698,2]
[423809948,1780431041000,-500.0,0.00013698,2]
[423809947,1780431041000,-204.539955,0.00013698,2]
[423809937,1780431041000,-500.0,0.00013698,2]
[423809941,1780431041000,-500.0,0.00013698,2]
[423809943,1780431041000,-380.55839579,0.00013698,2]
[423809940,1780431041000,-500.0,0.00013698,2]
[423809944,1780431041000,-5167.534149,0.00013698,2]
[423809939,1780431041000,-500.0,0.00013698,2]
[423809936,1780431041000,-500.57521612,0.00013698,2]
[423809946,1780431041000,-500.0,0.00013698,2]
[423809945,1780431041000,-506.61467452,0.00013698,2]
[423809942,1780431041000,-500.0,0.00013698,2]
[423809949,1780431041000,-500.0,0.00013698,2]
[423809950,1780431041000,-500.0,0.00013698,2]
[423809954,1780431041000,-500.33373265,0.00013698,2]
[423809951,1780431041000,-500.0,0.00013698,2]
[423809953,1780431041000,-500.0,0.00013698,2]
[423809952,1780431041000,-500.0,0.00013698,2]
[423809956,1780431041000,-500.0,0.00013698,2]
[423809955,1780431041000,-500.0,0.00013698,2]
[423809957,1780431041000,-500.0,0.00013698,2]
[423809872,1780431041000,-527.89022961,0.00013698,2]
[423809931,1780431041000,-558.262203,0.00013698,2]
[423809922,1780431041000,-500.0,0.00013698,2]
[423809938,1780431041000,-500.0,0.00013698,2]
[423809926,1780431041000,-500.0,0.00013698,2]
[423809927,1780431041000,-500.0,0.00013698,2]
[423809881,1780431041000,-500.0,0.00013698,2]